Cogmind - Beta 17.1 @@@ ROGUE MODE // 2026.09.08 @ 10:56:31 Player: MOPO3 Result: Destroyed by P-80 Master with Gamma Rifle Performance ------------- Evolutions (8) 4000 Regions Visited (17) 3400 Robots Destroyed (41) 205 Value Destroyed (1084) 1084 Prototype IDs (12) 240 Alien Tech Used (0) 0 Bonus (1808) 1808 TOTAL SCORE: 10737 Bonus ------- Follower Combat Kills 308 Entered DSFs 1500 Cogmind --------- Core Integrity 0/1450 Matter 224/300 Energy 99/100 System Corruption 7% Temperature Cool (0) Movement Core (50) Location -2/Research Parts ------- > --- POWER (2) -------- (None) > --- PROPULSION (8) --- (None) > --- UTILITY (11) ----- Hacking Suite > --- WEAPON (2) ------- (None) > --- INVENTORY (5) ---- Micro Antimatter Reactor Quantum Reactor Phasing Sabre Peak State ------------ > --- POWER ------------ (None) > --- PROPULSION ------- Biometal Heavy Treads Biometal Heavy Treads Biometal Heavy Treads > --- UTILITY ---------- Advanced Cryofiber Web Advanced Heat Sink Advanced Heat Sink Hacking Suite Hacking Suite System Shield System Shield System Shield > --- WEAPON ----------- Phasing Sabre > --- INVENTORY -------- System Shield System Shield Field Laser Disruptor Cannon [Rating: 93] Favorites ----------- Power Neutrino Core Engine Light Ion Engine Power Core Neutrino Core Reactor Light Antimatter Reactor Propulsion Improved Treads Treads Improved Treads Leg Flexi-carbon Leg Flight Unit Improved VTOL Module Utility System Shield Device ECM Suite Storage Small Storage Unit Processor Terrain Scan Processor Hackware System Shield Protection Reactive Plating Weapon Advanced Beam Cannon Energy Gun Improved Medium Laser Energy Cannon Advanced Beam Cannon Impact Weapon Powered Hammer Slashing Weapon Phasing Sabre Build | -11 -10 -9 -9 -8 -7 -7 -6 -6 -6 -5 -5 -4 -4 -4 -3 -3 -2 ------- Run | Yrd Mat Mat Min Mat Fac DSF Fac Low Low Fac DSF Fac Ext Cet Res DSF Res Slots Evolved 16 | . . 2 . 2 2 . 2 . . 2 . 2 . . 2 . 2 Power 1 | . . . . . . . 1 . . . . . . . . . . Propulsion 6 | . . . . . 2 . . . . 1 . 1 . . 1 . 1 Utility 9 | . . 2 . 2 . . 1 . . 1 . 1 . . 1 . 1 Weapon . | . . . . . . . . . . . . . . . . . . Parts Attached 113 | 9 4 12 1 5 1 2 7 4 . 5 6 10 23 1 . 9 14 Power 19 | 1 . 3 . 1 . . 1 . . . 4 1 5 . . 1 2 Engine 7 | 1 . 3 . 1 . . . . . . . . 2 . . . . Core 6 | . . . . . . . 1 . . . 2 . 3 . . . . Reactor 6 | . . . . . . . . . . . 2 1 . . . 1 2 Propulsion 32 | 2 2 2 1 . 1 . 1 . . 1 2 3 6 1 . 3 7 Treads 11 | 2 2 1 . . . . . . . . . . 2 1 . 3 . Leg 6 | . . . . . . . . . . . . . 4 . . . 2 Wheel . | . . . . . . . . . . . . . . . . . . Hover . | . . . . . . . . . . . . . . . . . . Flight 15 | . . 1 1 . 1 . 1 . . 1 2 3 . . . . 5 Utility 48 | 3 1 4 . 4 . 2 5 1 . 4 . 5 10 . . 5 4 Device 30 | 2 1 2 . 1 . 1 5 . . 3 . 4 9 . . . 2 Storage 5 | 1 . 1 . 1 . 1 . . . . . . . . . 1 . Processor 1 | . . . . 1 . . . . . . . . . . . . . Hackware 8 | . . . . . . . . . . 1 . 1 . . . 4 2 Protection 4 | . . 1 . 1 . . . 1 . . . . 1 . . . . Artifact . | . . . . . . . . . . . . . . . . . . Weapon 14 | 3 1 3 . . . . . 3 . . . 1 2 . . . 1 Energy Gun 6 | 3 . 2 . . . . . . . . . . 1 . . . . Energy Cannon 3 | . 1 1 . . . . . . . . . . . . . . 1 Ballistic Gun . | . . . . . . . . . . . . . . . . . . Ballistic Cannon . | . . . . . . . . . . . . . . . . . . Launcher . | . . . . . . . . . . . . . . . . . . Special Weapon . | . . . . . . . . . . . . . . . . . . Impact Weapon 4 | . . . . . . . . 3 . . . 1 . . . . . Slashing Weapon 1 | . . . . . . . . . . . . . 1 . . . . Piercing Weapon . | . . . . . . . . . . . . . . . . . . Special Melee Weapon . | . . . . . . . . . . . . . . . . . . Unidentified Prototypes 10 | . . 5 . . . . 1 . . 1 . 1 . . . . 2 Parts Lost 68 | . . . 7 . . . . 3 . . 6 11 11 4 . 13 13 Power 13 | . . . 1 . . . . 2 . . 1 3 3 . . 3 . Propulsion 23 | . . . 2 . . . . . . . 3 5 2 4 . 3 4 Utility 27 | . . . 2 . . . . 1 . . 2 3 6 . . 6 7 Weapon 5 | . . . 2 . . . . . . . . . . . . 1 2 Highest Loss Streak 13 | . . . 7 . . . . 3 . . 6 11 5 7 . 13 13 To Critical Strikes 1 | . . . . . . . . . . . . . . 1 . . . Average Backups 6 | 1 7 8 9 5 4 4 6 8 8 7 6 6 3 3 3 4 1 Power . | . 1 . . . . . . . . . . 1 . 1 1 . . Propulsion 2 | . 3 4 4 1 . . 2 4 4 3 2 . . . . . . Utility 1 | . . . . . . . 2 4 4 4 3 4 1 . . 1 . Weapon 2 | . 2 3 4 4 4 4 1 . . . 1 1 1 2 2 2 1 Tool/Special . | . . . . . . . . . . . . . . . . . . Unused Backups 13 | . . 2 3 . . . 6 . . . . 2 . . . . . Power . | . . . . . . . . . . . . . . . . . . Propulsion 2 | . . . 2 . . . . . . . . . . . . . . Utility 3 | . . . . . . . 2 . . . . 1 . . . . . Weapon 8 | . . 2 1 . . . 4 . . . . 1 . . . . . Tool/Special . | . . . . . . . . . . . . . . . . . . Average Slot Usage (%) 82 | . 100 99 93 50 61 68 76 81 53 60 65 83 81 74 61 65 37 Engine 5 | . 14 11 10 4 7 7 6 5 . . . . . . . . . Core 2 | . . . . . . . 1 5 . . . 4 8 10 9 5 . Treads 12 | . 28 22 20 . . . . . . . . . 8 8 9 8 7 Leg 3 | . . . . . . . . . . . . . 16 12 4 2 . Flight 7 | . . . . 18 23 23 23 26 26 29 27 24 . . . . 2 Device 20 | . 14 21 20 13 15 18 29 28 13 17 18 26 24 21 19 16 3 Storage 6 | . 14 11 10 . . 4 6 6 6 5 5 5 . . . . 2 Processor 1 | . . . . 8 7 7 6 6 6 5 5 1 . . . . . Hackware 4 | . . . . . . . . . . 1 5 8 8 5 4 19 17 Protection 4 | . . 10 9 7 7 7 . . . . . . 3 5 4 2 . Energy Gun 6 | . 15 11 9 . . . . . . . . 6 3 . . . 1 Energy Cannon 4 | . 12 10 10 . . . . . . . . . . . . . . Peak Build Rating 93 | 9 12 21 21 19 22 26 45 53 28 42 48 79 92 78 63 93 89 Average Rating 39 | 6 11 19 20 15 22 24 38 42 28 36 39 67 72 68 63 72 56 On Entrance 33 | . 7 12 21 10 19 22 26 45 28 28 42 37 24 78 63 63 78 Avg Prop Armor Cover (%) 14 | . . . . 16 . . . 12 12 16 16 . 11 7 4 13 23 Naked Turns . | . . . . . . . . . . . . . . . . . . Heaviest Build 46 | 12 15 38 38 9 9 15 22 25 8 10 22 43 46 36 36 36 23 Greatest Support 225 | 40 46 46 46 10 15 15 27 27 10 10 28 45 101 101 62 225 46 Greatest Overweight (x) 7 | . . . 7 . . . . . . . 1 1 5 . . 5 7 Average Overweight (x) . | . . . . . . . . . . . . . . . . . . Largest Inventory Capacity 10 | 8 8 10 10 10 5 8 8 8 8 8 8 8 8 5 5 10 10 Average Capacity 7 | 7 8 8 9 5 5 7 8 8 8 8 8 8 5 5 5 5 7 Most Carried 10 | 3 8 10 10 5 4 5 8 8 8 8 7 8 7 4 3 5 3 Average Carried 6 | 1 7 8 9 5 4 4 6 8 8 7 6 6 3 3 3 4 1 Final Capacity 10 | 8 8 10 5 5 5 8 8 8 8 8 8 8 5 5 5 10 5 Final Carried 10 | 3 8 10 5 5 4 5 8 8 8 7 7 8 4 3 3 4 3 Class Distribution -------------------- 46% | Mutant 16% | Scavenger-Mutant 11% | Hacker-Mutant 11% | Infiltrator-Sprinter 7% | Sprinter 6% | Hacker-Sprinter Dominant Class ---------------- Mutant | -10/Materials Mutant | -9/Materials Mutant | -9/Mines Sprinter | -8/Materials Sprinter | -7/Factory Sprinter | -7/DSF Infiltrator-Sprinter | -6/Factory Sprinter | -6/Lower Caves Sprinter | -6/Lower Caves Infiltrator-Sprinter | -5/Factory Infiltrator-Sprinter | -5/DSF Hacker-Sprinter | -4/Factory Scavenger-Mutant | -4/Extension Scavenger-Mutant | -4/Cetus Scavenger-Mutant | -3/Research Hacker-Mutant | -3/DSF Hacker-Mutant | -2/Research Resources | -11 -10 -9 -9 -8 -7 -7 -6 -6 -6 -5 -5 -4 -4 -4 -3 -3 -2 ----------- Run | Yrd Mat Mat Min Mat Fac DSF Fac Low Low Fac DSF Fac Ext Cet Res DSF Res Matter Collected 1173 | 290 40 137 10 7 . . 149 . . . 7 162 332 . . 39 . Remotely . | . . . . . . . . . . . . . . . . . . Salvage Created 1803 | 132 353 791 . . . . . . . . . 162 365 . . . . Parts 96 | 15 20 53 . . . . . . . . . 4 4 . . . . Haulers Intercepted 3 | . . 3 . . . . . . . . . . . . . . . Recyclers Shooed 3 | . 1 . . . . . . . . . . . . . . . 2 Parts Field Recycled . | . . . . . . . . . . . . . . . . . . Retrieved Matter . | . . . . . . . . . . . . . . . . . . Parts Self-Destructed 2 | . . . . . . . . 1 1 . . . . . . . . Prevented . | . . . . . . . . . . . . . . . . . . Parts Restored . | . . . . . . . . . . . . . . . . . . Kills | -11 -10 -9 -9 -8 -7 -7 -6 -6 -6 -5 -5 -4 -4 -4 -3 -3 -2 ------- Run | Yrd Mat Mat Min Mat Fac DSF Fac Low Low Fac DSF Fac Ext Cet Res DSF Res Combat Hostiles Destroyed 27 | . 4 18 . . . . . . . . . . 5 . . . . Melee 2 | . . . . . . . . . . . . . 2 . . . . Guns 7 | . 2 5 . . . . . . . . . . . . . . . Cannons 15 | . 2 13 . . . . . . . . . . . . . . . Classes Destroyed 10 | 3 1 4 . . . . . . . . . . 2 . . . . Worker 2 | 1 1 . . . . . . . . . . . . . . . . Builder 1 | . . . . . . . . . . . . . 1 . . . . Tunneler 3 | 3 . . . . . . . . . . . . . . . . . Hauler 3 | . . 3 . . . . . . . . . . . . . . . Recycler 3 | 1 2 . . . . . . . . . . . . . . . . Watcher 2 | . . 2 . . . . . . . . . . . . . . . Swarmer 7 | . . 7 . . . . . . . . . . . . . . . Grunt 15 | . 4 9 . . . . . . . . . . 2 . . . . Sentry 4 | . . 2 . . . . . . . . . . 2 . . . . Hunter 1 | . . . . . . . . . . . . . 1 . . . . Best Kill Streak 4 | 2 3 4 . . . . . . . . . . 2 . . . . Combat Bots Only 4 | . 2 4 . . . . . . . . . . 2 . . . . Max Kills in Single Turn 1 | 1 1 1 . . . . . . . . . . 1 . . . . Gunslinging . | . . . . . . . . . . . . . . . . . . Exploded . | . . . . . . . . . . . . . . . . . . Melee 1 | . . . . . . . . . . . . . 1 . . . . Uniques/NPCs Destroyed . | . . . . . . . . . . . . . . . . . . Combat | -11 -10 -9 -9 -8 -7 -7 -6 -6 -6 -5 -5 -4 -4 -4 -3 -3 -2 -------- Run | Yrd Mat Mat Min Mat Fac DSF Fac Low Low Fac DSF Fac Ext Cet Res DSF Res Hostile Shots Fired 768 | . 17 73 24 9 . 3 23 34 6 1 8 112 127 19 . 132 180 Missed 300 | . 4 20 2 2 . 3 13 21 3 1 1 68 50 8 . 40 64 Hits 468 | . 13 53 22 7 . . 10 13 3 . 7 44 77 11 . 92 116 Melee 2 | . . . . . . . . . . . . . . . . 2 . Projectile 466 | . 13 53 22 7 . . 10 13 3 . 7 44 77 11 . 90 116 AOE 22 | . . . 22 . . . . . . . . . . . . . . Critical Strikes 18 | . . 1 1 . . . . . . . 2 2 2 3 . 3 4 Damage Taken 9930 | . 151 439 894 118 . . 93 199 46 . 349 970 1478 296 . 2148 2749 Core 3355 | . 22 53 313 86 . . 13 17 30 . 211 303 399 . . 452 1456 Absorbed by Shields 196 | . . . . . . . . . . . . . 196 . . . . Ignored by Resistances 73 | . . 69 4 . . . . . . . . . . . . . . Regen/Repaired (Parts) 11 | . . . . . . . 11 . . . . . . . . . . Core Remaining (%) 72 | 100 91 . 8 84 . 100 . . 92 . 78 . . 38 . 65 . Volleys Fired 73 | 9 15 44 . . . . . . . . . 3 . . . . 2 Largest 2 | 2 2 2 . . . . . . . . . 2 . . . . 2 Hottest 144 | 90 106 124 . . . . . . . . . 80 . . . . 144 Shots Fired 146 | 18 30 88 . . . . . . . . . 6 . . . . 4 Gun 85 | 18 15 44 . . . . . . . . . 6 . . . . 2 Cannon 61 | . 15 44 . . . . . . . . . . . . . . 2 Launcher . | . . . . . . . . . . . . . . . . . . Special . | . . . . . . . . . . . . . . . . . . Kinetic . | . . . . . . . . . . . . . . . . . . Thermal 129 | 18 15 88 . . . . . . . . . 6 . . . . 2 Explosive . | . . . . . . . . . . . . . . . . . . Electromagnetic 17 | . 15 . . . . . . . . . . . . . . . 2 Robot Hit Streak 12 | 4 9 12 . . . . . . . . . 3 . . . . 1 Robot Miss Streak 4 | 2 2 4 . . . . . . . . . 1 . . . . 2 Penetration Max . | . . . . . . . . . . . . . . . . . . Secondary Targets . | . . . . . . . . . . . . . . . . . . Shots Hit Robots 104 | 10 21 55 . . . . . . . . . 3 14 . . . 1 Core Hits 55 | 6 12 24 . . . . . . . . . 3 3 . . . 7 Critical Kills . | . . . . . . . . . . . . . . . . . . Critical Parts Destroyed 4 | . . . . . . . . . . . . . 4 . . . . Critical Strikes 6 | . 1 . . . . . . . . . . . 5 . . . . Burn 1 | . 1 . . . . . . . . . . . . . . . . Smash 5 | . . . . . . . . . . . . . 5 . . . . Melee Attacks 33 | . . . . . . . . . . . . . 33 . . . . Impact 30 | . . . . . . . . . . . . . 30 . . . . Slashing 3 | . . . . . . . . . . . . . 3 . . . . Piercing . | . . . . . . . . . . . . . . . . . . Sneak Attacks 1 | . . . . . . . . . . . . . 1 . . . . Combat Hostiles . | . . . . . . . . . . . . . . . . . . Follow-up Attacks 2 | . . . . . . . . . . . . . 2 . . . . Damage Inflicted 2245 | 112 441 1090 . . . . . . . . . 42 502 . . . 58 Guns 770 | 112 137 479 . . . . . . . . . 42 . . . . . Cannons 875 | . 279 576 . . . . . . . . . . . . . . 20 Explosions . | . . . . . . . . . . . . . . . . . . Melee 502 | . . . . . . . . . . . . . 502 . . . . Ramming 98 | . 25 35 . . . . . . . . . . . . . . 38 Kinetic . | . . . . . . . . . . . . . . . . . . Thermal 1346 | 112 137 1055 . . . . . . . . . 42 . . . . . Explosive . | . . . . . . . . . . . . . . . . . . Electromagnetic 299 | . 279 . . . . . . . . . . . . . . . 20 Impact 417 | . . . . . . . . . . . . . 417 . . . . Slashing 85 | . . . . . . . . . . . . . 85 . . . . Piercing . | . . . . . . . . . . . . . . . . . . Highest Corruption 6 | . . . . . . . . . . 2 2 3 5 5 . . 6 Average Corruption 3 | . . . . . . . . . . 2 2 2 3 5 . . 3 Corruption Purged 3 | . . . . . . . . . . . . . 3 . . . . Corruption Blocked . | . . . . . . . . . . . . . . . . . . Effects 20 | . . . . . . . . . . . 2 1 10 3 . . 4 Message Errors 3 | . . . . . . . . . . . . 1 2 . . . . Matter Fused 8 | . . . . . . . . . . . 1 . 4 1 . . 2 Heat Flow Errors 6 | . . . . . . . . . . . 1 . 3 2 . . . Parts Rejected 1 | . . . . . . . . . . . . . 1 . . . . Data Loss (minor) 1 | . . . . . . . . . . . . . . . . . 1 Data Loss (major) 1 | . . . . . . . . . . . . . . . . . 1 Overload Shots . | . . . . . . . . . . . . . . . . . . Overflow Damage 204 | . . 23 . . . . . . . . . . 181 . . . . Projectiles 23 | . . 23 . . . . . . . . . . . . . . . Explosions . | . . . . . . . . . . . . . . . . . . Melee 181 | . . . . . . . . . . . . . 181 . . . . Knockbacks 3 | . . . . . . . . . . . . . 2 . . . 1 Impact 3 | . . . . . . . . . . . . . 2 . . . 1 Kinetic . | . . . . . . . . . . . . . . . . . . Secondary . | . . . . . . . . . . . . . . . . . . Self-Inflicted Damage 16 | . . . . . . . . . . . . . . . . . 16 Shots . | . . . . . . . . . . . . . . . . . . Rammed 18 | . 4 4 . . . . . . . . . . . . . 1 9 Targets Rammed 18 | . 4 4 . . . . . . . . . . . . . 1 9 Kicked . | . . . . . . . . . . . . . . . . . . Crushed . | . . . . . . . . . . . . . . . . . . Highest Temperature 382 | 60 196 382 . . . . 7 7 . . 212 132 192 187 . 12 260 Average Temperature 79 | 20 95 100 . . . . 6 4 . . 109 51 83 100 . 9 150 Received Heat Transfer 1263 | . 84 123 . . . . 15 18 . . . 120 161 27 . 445 270 Effects 2 | . . 2 . . . . . . . . . . . . . . . Shutdowns 1 | . . 1 . . . . . . . . . . . . . . . Short Circuit 1 | . . 1 . . . . . . . . . . . . . . . Siege Activations . | . . . . . . . . . . . . . . . . . . Martial Activations . | . . . . . . . . . . . . . . . . . . Shielding Activations . | . . . . . . . . . . . . . . . . . . Robots Disrupted . | . . . . . . . . . . . . . . . . . . Combat Hostiles . | . . . . . . . . . . . . . . . . . . Robots Corrupted 4 | . . . . . . . . . . . . . 4 . . . . Combat Hostiles 3 | . . . . . . . . . . . . . 3 . . . . Parts Fried 14 | . 1 . . . . . . . . . . . 13 . . . . Impact Corruptions 5 | . . . . . . . . . . . . . 5 . . . . Robots Melted . | . . . . . . . . . . . . . . . . . . Combat Hostiles . | . . . . . . . . . . . . . . . . . . Parts Melted 6 | . 1 4 . . . . . . . . . 1 . . . . . Heat Transferred 2975 | 274 481 2109 . . . . . . . . . 111 . . . . . Parts Sabotaged . | . . . . . . . . . . . . . . . . . . Parts Stolen . | . . . . . . . . . . . . . . . . . . Parts Stripped . | . . . . . . . . . . . . . . . . . . Power Chain Reactions . | . . . . . . . . . . . . . . . . . . Alert | -11 -10 -9 -9 -8 -7 -7 -6 -6 -6 -5 -5 -4 -4 -4 -3 -3 -2 ------- Run | Yrd Mat Mat Min Mat Fac DSF Fac Low Low Fac DSF Fac Ext Cet Res DSF Res Maximum Alert Level . | . . . . . . . . . . . . . . . . . . Low Security (%) 100 | 100 100 100 100 100 100 100 100 . . 100 100 100 100 100 100 100 100 Level 1 . | . . . . . . . . . . . . . . . . . . Level 2 . | . . . . . . . . . . . . . . . . . . Level 3 . | . . . . . . . . . . . . . . . . . . Level 4 . | . . . . . . . . . . . . . . . . . . Level 5 . | . . . . . . . . . . . . . . . . . . High Security . | . . . . . . . . . . . . . . . . . . Max Security . | . . . . . . . . . . . . . . . . . . Peak Influence 159 | 10 67 159 82 92 37 22 30 . . 28 . 20 70 22 . 15 125 Initial 54 | . 3 17 54 . 37 22 11 . . 28 . . . 22 . 3 . Average 25 | 2 14 58 24 29 34 22 12 . . 15 . 3 19 6 . 1 21 Influence Increases 1738 | 25 132 473 82 122 5 . 69 30 45 5 . 100 435 . 5 15 195 Destroy 0b10 Robot/C 700 | . 80 360 40 . . . . . . . . . 220 . . . . Destroy 0b10 Robot/NC 85 | 25 15 25 . . . . . . . . . 15 5 . . . . Destroy Leader 130 | . 20 70 10 . . . . . . . . . 30 . . . . Allied During Kill 30 | . . . 8 . . . . . . . . . 22 . . . . Successful Hack 94 | . 2 . . 17 5 . 24 . . 5 . 25 11 . 5 . . Disable Machine 30 | . . 15 15 . . . . . . . . . . . . . . Destroy Structure 24 | . . 3 9 . . . . . . . . . 12 . . . . Partial Spotted 105 | . . . . 15 . . 30 . . . . 60 . . . . . Lose Combat Pursuer 540 | . 15 . . 90 . . 15 30 45 . . . 135 . . 15 195 Influence Decreases 1633 | 20 94 375 223 40 55 10 71 50 . 50 . 100 395 40 . 20 90 Entered New Map 226 | . 2 26 87 . 45 10 11 8 . 17 . . . 18 . 2 . Time Decay 1073 | 20 92 349 74 40 10 . 60 42 . 33 . 71 222 10 . . 50 Lost Part 141 | . . . 2 . . . . . . . . 15 54 12 . 18 40 Lost Ally 94 | . . . 60 . . . . . . . . . 34 . . . . Purge Threat 99 | . . . . . . . . . . . . 14 85 . . . . Squads Dispatched 15 | . 1 2 . 2 . 1 1 . . . . 3 2 . . 1 2 Investigation 1 | . . . . . . . . . . . . . . . . . 1 Extermination 2 | . . . . . . . . . . . . 1 . . . . 1 Reinforcement 12 | . 1 2 . 2 . 1 1 . . . . 2 2 . . 1 . Assault . | . . . . . . . . . . . . . . . . . . Garrison . | . . . . . . . . . . . . . . . . . . Intercept . | . . . . . . . . . . . . . . . . . . Searches Triggered . | . . . . . . . . . . . . . . . . . . Construction Impeded 2 | . . 1 . . . . . . . . . . 1 . . . . Haulers Reinforced . | . . . . . . . . . . . . . . . . . . Active Scanning Responses . | . . . . . . . . . . . . . . . . . . Cargo Convoy Interrupts 1 | . . . . . . . . . . . . . . . . . 1 Stealth | -11 -10 -9 -9 -8 -7 -7 -6 -6 -6 -5 -5 -4 -4 -4 -3 -3 -2 --------- Run | Yrd Mat Mat Min Mat Fac DSF Fac Low Low Fac DSF Fac Ext Cet Res DSF Res Distress Signals 13 | . . 1 1 3 . . . . . . . 2 3 1 . . 2 Communications Jammed 8 | . . . . . . . . . . . . 8 . . . . . Distress Signals 8 | . . . . . . . . . . . . 8 . . . . . Times Spotted 258 | . 7 35 5 17 2 5 10 25 3 5 1 55 31 5 . 7 45 Peak Tracking Total 31 | . 3 4 3 13 3 4 6 8 4 5 1 9 8 5 . 7 31 Tactical Retreats 39 | . 1 8 . 2 . 2 1 5 1 . . 10 4 . . 1 4 ECM-based Alert Blocks 94 | . . 15 . 7 . 2 . 27 . . . 43 . . . . . Traps | -11 -10 -9 -9 -8 -7 -7 -6 -6 -6 -5 -5 -4 -4 -4 -3 -3 -2 ------- Run | Yrd Mat Mat Min Mat Fac DSF Fac Low Low Fac DSF Fac Ext Cet Res DSF Res Traps Triggered 4 | . . . . . . . 1 . . 1 . 1 1 . . . . Indirectly . | . . . . . . . . . . . . . . . . . . Trap Hack Attempts . | . . . . . . . . . . . . . . . . . . Triggered . | . . . . . . . . . . . . . . . . . . Disarmed . | . . . . . . . . . . . . . . . . . . Reprogrammed . | . . . . . . . . . . . . . . . . . . Reused . | . . . . . . . . . . . . . . . . . . Traps Extracted . | . . . . . . . . . . . . . . . . . . Installed . | . . . . . . . . . . . . . . . . . . Triggered . | . . . . . . . . . . . . . . . . . . Machines | -11 -10 -9 -9 -8 -7 -7 -6 -6 -6 -5 -5 -4 -4 -4 -3 -3 -2 ---------- Run | Yrd Mat Mat Min Mat Fac DSF Fac Low Low Fac DSF Fac Ext Cet Res DSF Res Machines Disabled 3 | . . 1 1 . . . . . . . . . 1 . . . . Max in Single Turn 1 | . . 1 . . . . . . . . . . 1 . . . . Garrison Access 1 | . . . . . . . . . . . . 1 . . . . . Energy Cycler 3 | . . . . . . . . . . . . . 3 . . . . Machines Repaired . | . . . . . . . . . . . . . . . . . . Machines Dismantled . | . . . . . . . . . . . . . . . . . . Machines Sabotaged . | . . . . . . . . . . . . . . . . . . Overloaded Fab Kills . | . . . . . . . . . . . . . . . . . . Hacking | -11 -10 -9 -9 -8 -7 -7 -6 -6 -6 -5 -5 -4 -4 -4 -3 -3 -2 --------- Run | Yrd Mat Mat Min Mat Fac DSF Fac Low Low Fac DSF Fac Ext Cet Res DSF Res Machines Accessed 46 | . 3 2 . 4 1 . 5 2 . 3 . 13 9 . 1 . 3 Terminals 29 | . 3 2 . 4 1 . 2 . . 2 . 5 9 . 1 . . Fabricators 3 | . . . . . . . 1 . . . . 1 . . . . 1 Repair Stations 3 | . . . . . . . 1 . . . . 2 . . . . . Recycling Units 5 | . . . . . . . . . . 1 . 3 . . . . 1 Scanalyzers 1 | . . . . . . . 1 . . . . . . . . . . Garrison Access 3 | . . . . . . . . . . . . 2 . . . . 1 Total Hacks 108 | . 10 5 . 11 1 . 10 2 . 5 . 32 25 . 1 . 6 Successful 41 | . 4 . . 5 1 . 6 2 . 2 . 11 8 . 1 . 1 Failed 67 | . 6 5 . 6 . . 4 . . 3 . 21 17 . . . 5 Catastrophic 13 | . 1 . . 2 . . . . . . . 4 5 . . . 1 Database Lockouts . | . . . . . . . . . . . . . . . . . . Manual 48 | . 7 5 . 10 1 . 3 . . . . 14 8 . . . . Terminals 73 | . 10 5 . 11 1 . 3 . . 2 . 15 25 . 1 . . Fabricators 4 | . . . . . . . 1 . . . . 2 . . . . 1 Repair Stations 5 | . . . . . . . 3 . . . . 2 . . . . . Recycling Units 15 | . . . . . . . . . . 3 . 10 . . . . 2 Scanalyzers 3 | . . . . . . . 3 . . . . . . . . . . Garrison Access 6 | . . . . . . . . . . . . 3 . . . . 3 Terminal Hacks 21 | . 3 . . 2 1 . . 2 . 1 . 4 7 . 1 . . Record 4 | . 3 . . . . . . . . . . . 1 . . . . Prototype ID Bank 1 | . . . . 1 . . . . . . . . . . . . . Open Door 4 | . . . . . . . . 2 . . . . 2 . . . . Open DSF 4 | . . . . . 1 . . . . 1 . 1 . . 1 . . Branch Access Points 3 | . . . . 1 . . . . . . . 1 1 . . . . Unreport Threat 4 | . . . . . . . . . . . . 2 2 . . . . Recall Reinforcements 1 | . . . . . . . . . . . . . 1 . . . . Fabricator Hacks 1 | . . . . . . . 1 . . . . . . . . . . Network Status 1 | . . . . . . . 1 . . . . . . . . . . Repair Station Hacks 3 | . . . . . . . 2 . . . . 1 . . . . . Scan Component 1 | . . . . . . . 1 . . . . . . . . . . Repair 1 | . . . . . . . 1 . . . . . . . . . . Refit 1 | . . . . . . . . . . . . 1 . . . . . Recycling Unit Hacks 5 | . . . . . . . . . . 1 . 3 . . . . 1 Retrieve Matter 1 | . . . . . . . . . . . . 1 . . . . . Retrieve Components 4 | . . . . . . . . . . 1 . 2 . . . . 1 Scanalyzer 2 | . . . . . . . 2 . . . . . . . . . . Retrieve Study 2 | . . . . . . . 2 . . . . . . . . . . Garrison Access Hacks 1 | . . . . . . . . . . . . 1 . . . . . Seal Access 1 | . . . . . . . . . . . . 1 . . . . . Unauthorized Hacks 8 | . 1 . . 3 . . 1 . . . . 2 1 . . . . Terminals 8 | . 1 . . 3 . . 1 . . . . 2 1 . . . . Botnet 8 | . 1 . . 3 . . 1 . . . . 2 1 . . . . Fabricators . | . . . . . . . . . . . . . . . . . . Repair Stations . | . . . . . . . . . . . . . . . . . . Recycling Units . | . . . . . . . . . . . . . . . . . . Scanalyzers . | . . . . . . . . . . . . . . . . . . Garrison Access . | . . . . . . . . . . . . . . . . . . Data Cores Recovered . | . . . . . . . . . . . . . . . . . . Used . | . . . . . . . . . . . . . . . . . . Hacking Detections 33 | . 3 2 . 4 . . 4 . . 1 . 9 8 . . . 2 Full Trace Events 1 | . . . . . . . . . . . . . . . . . 1 Feedback Events 1 | . . . . . . . . . . . . . . . . . 1 Corruption 1 | . . . . . . . . . . . . . . . . . 1 Feedback Blocked . | . . . . . . . . . . . . . . . . . . Robot Schematics Acquired . | . . . . . . . . . . . . . . . . . . Robots Built . | . . . . . . . . . . . . . . . . . . Authchips . | . . . . . . . . . . . . . . . . . . Time . | . . . . . . . . . . . . . . . . . . Total Robot Build Rating . | . . . . . . . . . . . . . . . . . . Part Schematics Acquired . | . . . . . . . . . . . . . . . . . . Parts Built . | . . . . . . . . . . . . . . . . . . Authchips . | . . . . . . . . . . . . . . . . . . Time . | . . . . . . . . . . . . . . . . . . Total Part Build Rating . | . . . . . . . . . . . . . . . . . . Part Studies Acquired 2 | . . . . . . . 2 . . . . . . . . . . Parts Repaired 1 | . . . . . . . 1 . . . . . . . . . . Time 13 | . . . . . . . 13 . . . . . . . . . . Parts Recycled . | . . . . . . . . . . . . . . . . . . Recycled Matter . | . . . . . . . . . . . . . . . . . . Retrieved Matter . | . . . . . . . . . . . . . . . . . . Retrieved Components 9 | . . . . . . . . . . 2 . 5 . . . . 2 Parts Scanalyzed . | . . . . . . . . . . . . . . . . . . Part Schematics Acquired . | . . . . . . . . . . . . . . . . . . Parts Damaged . | . . . . . . . . . . . . . . . . . . Bothacking | -11 -10 -9 -9 -8 -7 -7 -6 -6 -6 -5 -5 -4 -4 -4 -3 -3 -2 ------------ Run | Yrd Mat Mat Min Mat Fac DSF Fac Low Low Fac DSF Fac Ext Cet Res DSF Res Used RIF Installer . | . . . . . . . . . . . . . . . . . . Robots Hacked . | . . . . . . . . . . . . . . . . . . Non-combat . | . . . . . . . . . . . . . . . . . . Combat . | . . . . . . . . . . . . . . . . . . Robot Hacks Applied . | . . . . . . . . . . . . . . . . . . Relay Couplers Released . | . . . . . . . . . . . . . . . . . . Fabnet Peak Effective % . | . . . . . . . . . . . . . . . . . . Robots Rewired . | . . . . . . . . . . . . . . . . . . Allies Hacked . | . . . . . . . . . . . . . . . . . . Hacks Repelled . | . . . . . . . . . . . . . . . . . . Allies | -11 -10 -9 -9 -8 -7 -7 -6 -6 -6 -5 -5 -4 -4 -4 -3 -3 -2 -------- Run | Yrd Mat Mat Min Mat Fac DSF Fac Low Low Fac DSF Fac Ext Cet Res DSF Res Total Allies 6 | . . . 3 . . . . . . . . . 3 . . . . Largest Group 3 | . . . 3 . . . . . . . . . 2 . . . . Highest-Rated Group 80 | . . . 40 . . . . . . . . . 80 . . . . Highest-Rated Ally 51 | . . . 16 . . . . . . . . . 51 . . . . Total Orders . | . . . . . . . . . . . . . . . . . . Ally Attacks 31 | . . . 10 . . . . . . . . . 21 . . . . Total Damage 748 | . . . 132 . . . . . . . . . 616 . . . . Kills 8 | . . . 2 . . . . . . . . . 6 . . . . Allies Corrupted . | . . . . . . . . . . . . . . . . . . Allies Melted . | . . . . . . . . . . . . . . . . . . Intel | -11 -10 -9 -9 -8 -7 -7 -6 -6 -6 -5 -5 -4 -4 -4 -3 -3 -2 ------- Run | Yrd Mat Mat Min Mat Fac DSF Fac Low Low Fac DSF Fac Ext Cet Res DSF Res Active Infowar (turns) 2245 | 86 54 993 268 20 38 39 193 140 . 3 . 381 . . . . 30 Sensors 1 | . . . . . . . . . . 1 . . . . . . . IFF 30 | . . . . . . . . . . . . . . . . . 30 Terrain 326 | 40 . . . . . 1 181 104 . . . . . . . . . Seismic 100 | 46 54 . . . . . . . . . . . . . . . . Jamming 435 | . . . . . . . 21 74 . 2 . 338 . . . . . ECM 1896 | . . 993 268 20 38 39 62 106 . . . 370 . . . . . Robot Analysis Total . | . . . . . . . . . . . . . . . . . . Derelict Logs Recovered . | . . . . . . . . . . . . . . . . . . Drone Launches . | . . . . . . . . . . . . . . . . . . Drone Recoveries . | . . . . . . . . . . . . . . . . . . Exploration | -11 -10 -9 -9 -8 -7 -7 -6 -6 -6 -5 -5 -4 -4 -4 -3 -3 -2 ------------- Run | Yrd Mat Mat Min Mat Fac DSF Fac Low Low Fac DSF Fac Ext Cet Res DSF Res Turns Passed 4194 | 118 461 993 268 88 38 39 196 146 43 86 44 406 715 71 7 157 318 Spaces Moved 5162 | 51 247 434 173 204 127 121 558 496 134 241 108 1326 482 54 5 89 312 Core 389 | 5 . . 1 78 . . . . . . . . 49 . . 22 234 Treads 978 | 46 247 434 152 . . . . . . . . . 10 17 5 67 . Legs 421 | . . . . . . . . . . . . . 382 37 . . 2 Wheels . | . . . . . . . . . . . . . . . . . . Hover . | . . . . . . . . . . . . . . . . . . Flight 3374 | . . . 20 126 127 121 558 496 134 241 108 1326 41 . . . 76 Fastest Speed 20 | 50 160 160 32 32 29 29 27 27 32 32 26 27 34 120 160 100 20 Average Speed 66 | 149 160 160 148 38 29 29 27 27 32 32 31 27 113 132 160 158 88 Slowest Speed 400 | 160 160 160 400 50 29 29 29 32 32 32 105 117 300 160 160 300 400 Overloaded Moves 44 | . . . . . . . . . . . . . . . . . 44 Propulsion Burnouts . | . . . . . . . . . . . . . . . . . . Robots Hopped 30 | . . . 1 . . . . 2 . 1 1 21 . . . . 4 Potential Cave-ins 8 | . . . . . . . . . . . . . 8 . . . . Cave-ins Triggered 1 | . . . . . . . . . . . . . 1 . . . . Exploration Rate (%) 37 | 4 35 33 35 28 4 82 17 65 19 7 90 32 59 23 . 87 11 Regions Visited 17 Branch Regions 5 Pre-discovered Areas . | . . . . . . . . . . . . . . . . . . Known Exits Taken 5 | . . . . . 1 . . . . 1 . 1 1 . 1 . . Unknown Exits Taken 9 | 1 1 1 1 1 . . 1 1 1 . . . . 1 . . . Scrap Searched 2 | . . . 1 . . . . 1 . . . . . . . . . Spaces Dug 11 | . . . . . . . . . . . . . 11 . . . . Terrain Destroyed 11 | . . . . . . . . . . . . . 11 . . . . Melee 11 | . . . . . . . . . . . . . 11 . . . . Projectile . | . . . . . . . . . . . . . . . . . . AOE . | . . . . . . . . . . . . . . . . . . Terrain Rammed . | . . . . . . . . . . . . . . . . . . Walls Destroyed . | . . . . . . . . . . . . . . . . . . Machines Disabled . | . . . . . . . . . . . . . . . . . . Actions | -11 -10 -9 -9 -8 -7 -7 -6 -6 -6 -5 -5 -4 -4 -4 -3 -3 -2 --------- Run | Yrd Mat Mat Min Mat Fac DSF Fac Low Low Fac DSF Fac Ext Cet Res DSF Res Total 5669 | 71 280 646 182 209 127 123 599 505 133 247 115 1338 592 54 4 100 344 Wait 191 | . 3 123 8 . . . 13 . . . . . 43 . . . 1 Move 5085 | 50 246 433 170 203 126 120 557 491 133 238 105 1283 481 53 4 88 304 Hop 30 | . . . 1 . . . . 2 . 1 1 21 . . . . 4 Pick Up 45 | 3 5 11 . . . 1 7 . . 2 1 8 5 . . 2 . Fast Attach 85 | 7 1 7 . 5 . 2 10 5 . 2 4 6 17 . . 8 11 Attach 30 | . . 1 2 . 1 . . . . 3 2 6 10 1 . 1 3 Detach 6 | . . . . . . . 2 . . . 1 1 . . . . 2 Swap 15 | 2 3 6 . . . . . . . . . 1 2 . . . 1 Drop 59 | . 3 17 1 1 . . 10 7 . 1 1 9 2 . . . 7 Fire 73 | 9 15 44 . . . . . . . . . 3 . . . . 2 Melee 31 | . . . . . . . . . . . . . 31 . . . . Ram 9 | . . . . . . . . . . . . . . . . . 9 Kick . | . . . . . . . . . . . . . . . . . . Crush 9 | . 4 4 . . . . . . . . . . . . . 1 . Escape Stasis . | . . . . . . . . . . . . . . . . . . Rewire 1 | . . . . . . . . . . . . . 1 . . . . Trap . | . . . . . . . . . . . . . . . . . . Miscellaneous . | . . . . . . . . . . . . . . . . . . Route ------- -11/Scrapyard -10/Materials -9/Materials -9/Mines -8/Materials -7/Factory -7/DSF -6/Factory -6/Lower Caves -6/Lower Caves -5/Factory -5/DSF -4/Factory (discovered 5 exits: Upp x2 / *Ext x2 / Arm) -4/Extension (discovered 2 exits: *Res / *Cet) -4/Cetus -3/Research -3/DSF -2/Research History --------- Turn | Location | Event 8 | -11/Scrapyard | Discovered new exit (range 16) 119 | -11/Scrapyard | Entered Materials 312 | -10/Materials | Build established: Mutant 439 | -10/Materials | Discovered new exit (range 7) 580 | -10/Materials | Entered another Materials area 580 | -9/Materials | Evolved 2 slots: Utility x2 1477 | -9/Materials | Discovered new exit (range 13) 1573 | -9/Materials | Entered Mines 1602 | -9/Mines | Discovered new exit (range 5) 1639 | -9/Mines | Assisted by bots powering up and referring to "LRC-V3" 1787 | -9/Mines | Assembled infested the area 1829 | -9/Mines | Core integrity fell below 50% 1834 | -9/Mines | Core integrity fell below 20% 1835 | -9/Mines | Lost 3 allies 1841 | -9/Mines | Entered Materials 1841 | -8/Materials | Evolved 2 slots: Utility x2 1866 | -8/Materials | Lost 7 parts (1p2n2u2w) 1927 | -8/Materials | Discovered new exit (range 5) 1929 | -8/Materials | Entered Factory 1929 | -7/Factory | Evolved 2 slots: Propulsion x2 1948 | -7/Factory | Identified exit to DSF 1967 | -7/Factory | Entered DSF 1991 | -7/DSF | Additional patrols routed to DSF 2002 | -7/DSF | Discovered new exit (range 15) 2006 | -7/DSF | Entered Factory 2006 | -6/Factory | Evolved 2 slots: Power x1, Utility x1 2101 | -6/Factory | Repaired ECM Suite 2145 | -6/Factory | Discovered new exit (range 7) 2202 | -6/Factory | Entered Lower Caves 2203 | -6/Lower Caves | Encountered a Warlord checkpoint 2347 | -6/Lower Caves | Discovered new exit (range 5) 2348 | -6/Lower Caves | Entered another Lower Caves area 2367 | -6/Lower Caves | Lost 3 parts (2p1u) 2386 | -6/Lower Caves | Discovered new exit (range 14) 2387 | -6/Lower Caves | Encountered a Warlord checkpoint 2391 | -6/Lower Caves | Entered Factory 2391 | -5/Factory | Evolved 2 slots: Propulsion x1, Utility x1 2412 | -5/Factory | Identified exit to DSF 2477 | -5/Factory | Entered DSF 2507 | -5/DSF | Additional patrols routed to DSF 2511 | -5/DSF | Discovered new exit (range 15) 2521 | -5/DSF | Entered Factory 2521 | -4/Factory | Evolved 2 slots: Propulsion x1, Utility x1 2539 | -4/Factory | Identified exit to Upper Caves 2539 | -4/Factory | Identified exit to Extension 2539 | -4/Factory | Identified exit to Armory 2542 | -4/Factory | Lost 6 parts (1p3n2u) 2927 | -4/Factory | Entered Extension 2948 | -4/Extension | Lost 11 parts (3p5n3u) 2958 | -4/Extension | Energy Cycler disabled 2958 | -4/Extension | Rescued a captive Derelict 2958 | -4/Extension | Rescued a captive Derelict 2958 | -4/Extension | Rescued a captive Derelict 2960 | -4/Extension | Rescued a captive Derelict 2961 | -4/Extension | Rescued a captive Derelict 3010 | -4/Extension | Lost 5 parts (2p2n1u) 3286 | -4/Extension | Identified exit to Cetus 3369 | -4/Extension | Build established: Scavenger-Mutant 3371 | -4/Extension | Crushed by falling debris 3371 | -4/Extension | Core integrity fell below 50% 3402 | -4/Extension | Lost 3 parts (1p2u) 3627 | -4/Extension | Discovered new exit (range 10) 3642 | -4/Extension | Entered Cetus 3657 | -4/Cetus | Spotted Cetus Guard 3657 | -4/Cetus | Spotted Cetus Guard 3659 | -4/Cetus | Spotted Cetus Guard 3659 | -4/Cetus | Spotted Cetus Guard 3689 | -4/Cetus | Discovered new exit (range 16) 3713 | -4/Cetus | Entered Research 3713 | -3/Research | Evolved 2 slots: Propulsion x1, Utility x1 3714 | -3/Research | Lost 7 parts (4n3u) 3720 | -3/Research | Identified exit to DSF 3720 | -3/Research | Entered DSF 3774 | -3/DSF | Additional patrols routed to DSF 3852 | -3/DSF | Discovered new exit (range 14) 3877 | -3/DSF | Entered Research 3877 | -2/Research | Evolved 2 slots: Propulsion x1, Utility x1 3900 | -2/Research | Lost 13 parts (3p3n6u1w) 4027 | -2/Research | Build established: Hacker-Mutant 4170 | -2/Research | Core integrity fell below 50% 4190 | -2/Research | Core integrity fell below 20% 4194 | -2/Research | Spotted Executioner 4195 | -2/Research | Cargo convoy interrupted 4195 | -2/Research | Destroyed by P-80 Master with Gamma Rifle Last Messages --------------- 04186_ ALERT: Suspicious activity at Garrison Access R003. Dispatching Investigation squad. 04187_ Slammed into S-43 Plague. 04189_ W-44 Eye sends out distress signal. 04191_ Slammed into K-01 Serf. 04191_ K-01 Serf knocked back. 04192_ System corrupted: Matter fused (-10). 04194_ C-45 Heavy ARC bursts open, deploying its payload. 04194_ P-80 Master unfolds itself. 04194_ H-88 Terminator unfolds itself. 04194_ E-15 Imp unfolds itself. 04194_ C-45 Heavy ARC bursts open, deploying its payload. 04194_ X-87 Electro unfolds itself. 04194_ Executioner unfolds itself. 04194_ H-88 Terminator unfolds itself. 04194_ P-80 Master unfolds itself. 04194_ I-47 Archangel unfolds itself. 04194_ Penetrated by Slug. 04194_ K-01 Serf destroyed. 04195_ ALERT: Cargo convoy interrupted, initiating access lockdown. Map ----- +----------------------------------------------------+ | # ==#????????????????????????????????????????? | | # = #????????????????????????????????????????? | | # #????????????????????????????????????????? | | ## #????????????????????????????????????????? | | ?# "" #????????????????????????????????????????? | | ?# T" #????????????????????????????????????????? | | ?# "" #????????????????????????????????????????? | | ?# #????????????????????????????????????????? | | ?# #????????????????????????????????????????? | | ?########????????????????????????????????????????? | | ?????????????????????????????????????????????????? | | ?????????????????????????????????????????????????? | | ?????????????????????????????????????????????????? | | ######???????????????????????????????????????????? | | #???????????????????????????????????????????? | | #???????????????????????????????????????????? | | #???????????????????????????????????????????? | | """#???????????????????????????????????????????? | | """#???????????????????????????????????????????? | | """#???????????????????????????????????????????? | | #?????????????????????########??????????????? | | #???????????????##??? ???????????????? | | /#####################;### ???????????????? | | R " """ "???????????????? | | # """ "???????????????? | | g s sss @ """ "???????????????? | | g p s s # ????????????? | | ### ##########+######## # #??????????? | | ??# #?????# #??# #? """ """ #??????????? | | ??# #?????# #??#k%#? """ """?????????????? | | ??# #?????# " #??# *#??""" """?????????????? | | ??# #?????# """ #??# "#?? ??????????????? | | ??# #?????# G #??#"%#??? ?????????????????? | | ??# #?????# """ #??# "#???###?????????????????? | | ??# ####### " #??# #???????????????????????? | | ??# + #??# "#???????????????????????? | | ??# ####### ! #??#"%"???????????????????????? | | ??# #?????##########??# " ???????????????????????? | | ??# #?????????????????? ???????????????????????? | | ??# #??????????????????# ???????????????????????? | | ??# #??????????????????? ???????????????????????? | | ??# #??????????????????? #???????????????????????? | | ??# #????????????????????????????????????????????? | | ??? ?????????????????????????????????????????????? | | ??? ?????????????????????????????????????????????? | | ??? ?????????????????????????????????????????????? | | ??? ?????????????????????????????????????????????? | | ??? ?????????????????????????????????????????????? | | ??? ?????????????????????????????????????????????? | | ??? ?????????????????????????????????????????????? | +----------------------------------------------------+ Best States ------------- Heat Dissipation 100 Coolant Potential 50 Energy Generation 41 Energy Capacity 525 Matter Stores 300 Matter Capacity 300 Sight Range 16 Terrain Scan Range 16 Terrain Scan Density 85 ECM Strength 2 Jamming Range 16 Power Amplification 20 Additional Mass Support 16 Armor Coverage 225 Resistance: KI 20 Weapon Shielding 33 Melee Speed Boost 30 Evasion (%) 74 Recoil Reduction 4 Matter Filtering 50 Offensive Hacking 20 Defensive Hacking 40 Item Schematics ----------------- None Robot Schematics ------------------ None Fabricated ------------ Nothing Repaired ---------- ECM Suite | 45% | -6/Factory Studied --------- Lgt. Deuterium Engine | -6/Factory | Hacked Particle Cannon | -6/Factory | Hacked Alien Tech Used ----------------- None Achievements -------------- Fitting Room Window Shopping Challenges ------------ None Game ------ Seed GravmagZhirovFirepult Manual? 0 Play Time 01:20:05 Cumulative 10.0 hours Start 2026.09.08 @ 09:11:01 End 2026.09.08 @ 10:56:31 Sessions 1 Manual Loads 0 Difficulty Rogue Special Mode None Game No. 14 Rogue 14 Adventurer 0 Explorer 0 Win Type - Total 0 Types 0/0/0/0/0/0/0/0/0/0 Lore% 9 Gallery% 19 Achievement% 23 Wizard Run 0 Options --------- Layout 0 ASCII 0 Keyboard 0 Movement Numpad Keybinds 0 Fullscreen 1 Font 18/Terminus Map View 76x50 Zoom Use 0% Tactical HUD 1 Map Filters NONE Filters NONE Steam 1 RUN: c6ab4bb0-0bba-42bd-abc1-57d5a967b6a4